bitfinex/quotes_SOLUSD_20240703
["timestamp","ask_amount","ask_price","bid_price","bid_amount"]
[1719994968670,0.34,146.48,146.41,6.8299]
[1719994969469,0.34,146.48,146.34,15.7159]
[1719994969670,0.34,146.48,146.34,36.2759]
[1719994969889,0.17,146.48,146.35,20.0]
[1719994970076,3.0078,146.49,146.35,40.56]
[1719994970279,3.0078,146.49,146.4,6.8302]
[1719994970481,0.17,146.48,146.4,6.8302]
[1719994971286,9.50822303,146.49,146.36,0.17]
[1719994971488,7.3950897,146.48,146.39,6.8306]
[1719994971684,7.3950897,146.48,146.4,6.8305]
[1719994971885,7.3950897,146.48,146.39,6.8309]
[1719994972283,7.3950897,146.48,146.4,6.8304]
[1719994972793,6.5945,146.47,146.4,6.8304]
[1719994974893,6.5945,146.47,146.41,6.83]
[1719994975196,6.5945,146.47,146.37,31.42]
[1719994975392,6.5945,146.47,146.43,6.8291]
[1719994975593,6.5945,146.47,146.42,6.8294]
[1719994976713,0.17,146.46,146.35,20.0]
[1719994976996,0.17,146.46,146.39,6.8309]
[1719994977222,0.17,146.46,146.38,6.8314]
[1719994977505,0.34,146.46,146.38,6.8314]
[1719994977795,3.0078,146.45,146.36,31.42]
[1719994978384,3.0078,146.45,146.38,6.8313]
[1719994978582,3.0078,146.45,146.37,6.8318]
[1719994979183,0.17,146.44,146.37,6.8318]
[1719994980277,0.34,146.44,146.36,6.8324]
[1719994981097,0.34,146.44,146.37,6.8317]
[1719994981293,0.34,146.44,146.33,31.42]
[1719994981605,23.0078,146.45,146.4,6.8301]
[1719994981897,23.0078,146.45,146.38,6.8312]
[1719994983799,23.0078,146.45,146.37,6.8318]
[1719994984100,23.0078,146.45,146.38,6.8315]
[1719994984680,23.0078,146.45,146.37,6.8318]
[1719994985098,23.0078,146.45,146.38,6.8314]
[1719994985284,3.0078,146.45,146.35,31.42]
[1719994985494,3.0078,146.45,146.41,6.83]
[1719994985683,3.0078,146.45,146.42,6.8296]
[1719994985882,3.0078,146.45,146.41,6.8299]
[1719994987191,3.0078,146.45,146.38,31.42]
[1719994987593,3.0078,146.45,146.4,6.8303]
[1719994991009,7.0550897,146.46,146.41,31.42]
[1719994991189,6.5945,146.47,146.43,6.8291]
[1719994991389,6.5945,146.47,146.42,6.8294]
[1719994991588,6.5945,146.47,146.41,31.42]
[1719994991809,6.5945,146.47,146.4,6.8301]
[1719994993188,6.5945,146.47,146.4,6.8304]
[1719994993590,6.5945,146.47,146.38,31.42]
[1719994993897,7.3950897,146.46,146.36,31.42]
[1719994994095,7.3950897,146.46,146.38,6.8312]
[1719994994608,7.3950897,146.46,146.36,31.42]
[1719994994913,7.3950897,146.46,146.32,6.8341]
[1719994994914,6.0882,146.44,146.32,6.8341]
[1719994995112,27.3950897,146.43,146.36,6.8324]
[1719994995501,27.3950897,146.43,146.37,6.8319]
[1719994996006,27.0550897,146.43,146.38,6.8314]
[1719994996203,27.0550897,146.43,146.39,6.831]
[1719994996393,27.0550897,146.43,146.4,6.8304]
[1719994996394,7.0550897,146.43,146.4,6.8304]
[1719994996599,6.0882,146.44,146.4,6.8304]
[1719994996821,6.0882,146.44,146.43,6.8292]
[1719994996994,3.0078,146.45,146.42,6.8294]
[1719994997802,3.0078,146.45,146.41,6.8299]
[1719994999019,3.0078,146.45,146.41,6.8301]
[1719994999215,7.0550897,146.47,146.42,0.17]
[1719994999403,0.8205734,146.52,146.5,6.8254]
[1719994999611,0.8205734,146.52,146.46,31.42]
[1719994999923,0.8205734,146.52,146.48,6.8264]
[1719995000215,0.8205734,146.52,146.45,0.17]
[1719995000419,0.8205734,146.52,146.51,6.8254]
[1719995000618,0.8205734,146.52,146.5,6.8258]
[1719995000997,0.8205734,146.52,146.51,6.8254]
[1719995001199,0.8205734,146.52,146.51,38.4154]
[1719995001401,3.0078,146.62,146.53,6.8245]
[1719995001625,3.0078,146.62,146.53,7.1645]
[1719995002712,3.0078,146.62,146.53,6.9945]
[1719995003101,3.0078,146.62,146.46,6.2989]
[1719995003302,3.0078,146.62,146.53,6.8245]
[1719995003926,3.0078,146.62,146.53,38.2445]
[1719995004113,3.0078,146.62,146.53,38.5845]
[1719995004520,3.0078,146.62,146.53,38.4145]
[1719995004724,3.0078,146.62,146.53,38.2445]
[1719995005126,3.0078,146.62,146.53,38.5845]
[1719995005503,3.0078,146.62,146.53,38.4145]
[1719995005704,3.0078,146.62,146.53,38.2445]
[1719995006620,6.4359,146.63,146.53,38.4145]
[1719995006823,6.4359,146.63,146.53,58.5845]
[1719995007534,6.37649737,146.63,146.58,6.8221]
[1719995007932,6.37649737,146.63,146.57,6.8225]
[1719995008103,6.37649737,146.63,146.55,31.42]
[1719995008104,6.37649737,146.63,146.58,6.8221]
[1719995008817,6.37649737,146.63,146.59,6.8215]
[1719995009034,6.37649737,146.63,146.58,6.822]
[1719995009328,6.37649737,146.63,146.55,31.42]
[1719995009830,6.37649737,146.63,146.59,6.8217]
[1719995010531,6.37649737,146.63,146.58,6.822]
[1719995011827,6.37649737,146.63,146.57,6.8225]
[1719995012217,6.37649737,146.63,146.56,6.823]
[1719995012620,6.37649737,146.63,146.57,6.8225]
[1719995013835,6.37649737,146.63,146.58,6.8221]
[1719995014009,6.37649737,146.63,146.55,31.42]
[1719995014332,6.37649737,146.63,146.56,0.17]
[1719995014530,6.37649737,146.63,146.58,6.822]
[1719995015015,6.37649737,146.63,146.57,6.8225]
[1719995015217,3.8283734,146.66,146.6,6.8208]
[1719995015615,3.8283734,146.66,146.58,31.42]
[1719995015819,3.8283734,146.66,146.56,22.2575]
[1719995016024,3.8283734,146.66,146.56,46.8546]
[1719995016347,3.8283734,146.66,146.59,6.8216]
[1719995016639,3.8283734,146.66,146.56,31.42]
[1719995016808,0.34,146.65,146.56,31.42]
[1719995017005,3.8283734,146.66,146.56,31.42]
[1719995017226,3.8283734,146.66,146.61,6.8204]
[1719995017737,3.8283734,146.66,146.56,31.42]
[1719995017738,3.8283734,146.66,146.6,6.8211]
[1719995018336,3.8283734,146.66,146.61,6.8207]
[1719995018840,3.8283734,146.66,146.62,6.8202]
[1719995019333,3.8283734,146.66,146.61,6.8206]
[1719995019538,3.8283734,146.66,146.63,6.8198]
[1719995019740,3.8283734,146.66,146.62,6.8201]
[1719995020522,3.8283734,146.66,146.6,6.8211]
[1719995020835,3.8283734,146.66,146.61,6.8208]
[1719995021137,3.8283734,146.66,146.62,6.8202]
[1719995021436,0.8205734,146.66,146.65,6.8189]
[1719995021634,0.8205734,146.66,146.64,6.819]
[1719995021806,0.8205734,146.66,146.62,31.42]
[1719995022011,0.8205734,146.66,146.62,6.8201]
[1719995022210,0.8205734,146.66,146.59,16.6428]
[1719995022431,0.8205734,146.66,146.6,0.34]
[1719995022607,0.8205734,146.66,146.64,6.8193]
[1719995023012,0.8205734,146.66,146.59,16.6428]
[1719995023233,0.8205734,146.66,146.61,6.8206]
[1719995024135,0.8205734,146.66,146.6,6.821]
[1719995024446,0.8205734,146.66,146.61,6.8207]
[1719995025847,0.8205734,146.66,146.63,6.8197]
[1719995026351,0.8205734,146.66,146.58,31.42]
[1719995026527,0.8205734,146.66,146.62,6.8201]
[1719995028130,0.8205734,146.66,146.6,6.8212]
[1719995028345,0.17,146.65,146.6,6.8212]
[1719995028519,0.8205734,146.66,146.61,6.8206]
[1719995028719,0.8205734,146.66,146.62,6.8202]
[1719995028947,0.8205734,146.66,146.63,6.8198]
[1719995029532,0.8205734,146.66,146.62,6.8201]
[1719995030251,0.8205734,146.66,146.6,31.42]
[1719995030754,0.8205734,146.66,146.61,6.8204]
[1719995031445,0.8205734,146.66,146.62,6.8203]
[1719995031831,0.8205734,146.66,146.64,6.819]
[1719995032531,0.8205734,146.66,146.65,6.8189]
[1719995032735,7.12152236,146.72,146.65,31.59]
[1719995032935,20.56,146.8,146.71,6.8161]
[1719995033133,27.67830395,146.8,146.71,6.8161]
[1719995033335,27.67830395,146.8,146.71,6.816]
[1719995033941,27.67830395,146.8,146.7,6.8164]
[1719995034135,7.11830395,146.8,146.72,6.8156]
[1719995034347,7.11830395,146.8,146.66,40.73]
[1719995034348,20.56,146.79,146.71,31.42]
[1719995034527,20.56,146.79,146.7,6.8164]
[1719995034726,20.56,146.79,146.69,6.8169]
[1719995035130,20.56,146.79,146.7,6.8166]
[1719995036032,0.34,146.78,146.7,6.8166]
[1719995036244,0.34,146.78,146.68,31.42]
[1719995036455,0.34,146.78,146.69,6.8167]
[1719995036632,20.0,146.79,146.68,31.42]
[1719995037052,20.0,146.78,146.68,31.42]
[1719995037556,20.56,146.76,146.67,6.8179]
[1719995037733,20.56,146.76,146.66,31.42]
[1719995037932,20.56,146.76,146.67,6.818]
[1719995037933,0.34,146.75,146.67,6.818]
[1719995038152,10.0063,146.77,146.66,31.42]
[1719995038347,20.0,146.76,146.71,6.8158]
[1719995038653,10.1763,146.77,146.71,6.8158]
[1719995038823,0.17,146.76,146.7,6.8165]
[1719995039027,0.17,146.76,146.69,38.237]
[1719995039227,0.34,146.76,146.68,6.8175]
[1719995039541,0.34,146.76,146.65,31.42]
[1719995039728,0.34,146.76,146.67,6.8176]
[1719995039924,0.34,146.76,146.68,6.8174]
[1719995040354,0.34,146.76,146.66,6.8181]
[1719995040542,40.9,146.76,146.64,6.819]
[1719995040746,40.9,146.76,146.65,6.8186]
[1719995041731,20.56,146.72,146.58,15.5412]
[1719995042053,20.56,146.7,146.6,6.8211]
[1719995042232,26.8589,146.71,146.6,6.8211]
[1719995042233,40.9,146.69,146.6,6.8211]
[1719995042430,44.3881,146.68,146.58,31.42]
[1719995042638,0.34,146.67,146.59,6.8213]
[1719995042851,20.34,146.67,146.6,6.8211]
[1719995043347,40.9,146.67,146.55,15.7809]
[1719995043528,40.9,146.67,146.57,6.8223]
[1719995043529,6.3708,146.66,146.57,6.8223]
[1719995043729,20.9,146.65,146.53,31.42]
[1719995043935,40.56,146.64,146.53,31.42]
[1719995044235,0.34,146.63,146.53,6.8242]
[1719995044439,0.34,146.63,146.54,6.824]
[1719995044840,0.34,146.63,146.5,31.42]
[1719995045041,20.56,146.61,146.47,16.91032632]
[1719995045236,40.9,146.6,146.51,6.8254]
[1719995045949,20.34,146.6,146.48,31.42]
[1719995046149,0.17,146.6,146.56,6.8228]
[1719995046655,0.17,146.6,146.57,6.8224]
[1719995046842,0.34,146.61,146.51,31.42]
[1719995047039,0.34,146.61,146.57,6.8226]
[1719995047361,0.34,146.61,146.56,6.823]
[1719995047854,10.1989,146.62,146.57,6.8223]
[1719995048151,10.1989,146.62,146.58,6.822]
[1719995048658,10.1989,146.62,146.57,6.8225]
[1719995049040,10.1989,146.62,146.56,6.823]
[1719995049235,20.56,146.61,146.52,6.8246]
[1719995049649,0.34,146.6,146.53,6.8245]
[1719995051160,10.1989,146.62,146.47,16.91032632]
[1719995051337,10.1989,146.62,146.56,6.823]
[1719995051664,10.1989,146.62,146.54,6.8237]
[1719995051863,10.1989,146.62,146.47,277.01032632]
[1719995052163,10.1989,146.62,146.48,20.0]
[1719995052355,10.1989,146.62,146.49,0.17]
[1719995052738,10.1989,146.62,146.57,6.8226]
[1719995053165,6.3708,146.62,146.57,6.8226]
[1719995055250,6.3708,146.62,146.58,6.8221]
[1719995055837,10.94889592,146.66,146.53,20.56]
[1719995056063,3.8281,146.66,146.61,6.8206]
[1719995056268,3.8281,146.66,146.6,6.8212]
[1719995056574,3.8281,146.66,146.54,20.34]
[1719995056737,3.8281,146.66,146.54,40.9]
[1719995057445,3.8281,146.66,146.62,6.8203]
[1719995057859,3.8281,146.66,146.61,6.8206]
[1719995059059,6.2334,146.67,146.63,6.8197]
[1719995059365,7.11988037,146.7,146.64,6.8194]
[1719995059670,10.2202,146.71,146.64,6.8192]
[1719995059840,10.2202,146.71,146.57,55.85]
[1719995060047,10.2202,146.71,146.58,40.9]
[1719995060247,10.2202,146.71,146.6,20.56]
[1719995060462,6.3921,146.71,146.67,6.8179]
[1719995060843,10.94433334,146.75,146.63,6.4929]
[1719995061048,3.8281,146.75,146.7,6.8161]
[1719995062147,3.8281,146.75,146.64,20.34]
[1719995062654,3.8281,146.75,146.68,6.8172]
[1719995064987,3.8281,146.75,146.64,20.34]
[1719995065692,3.8281,146.75,146.7,6.8165]
[1719995065985,3.8281,146.75,146.64,20.34]
[1719995066487,3.8281,146.75,146.7,6.8163]
[1719995067283,3.8281,146.75,146.71,6.8161]
[1719995067881,6.1813,146.76,146.66,15.198]
[1719995068065,6.1813,146.76,146.72,6.8156]
[1719995068283,6.1813,146.76,146.71,6.816]
[1719995068475,6.1813,146.76,146.7,6.8164]
[1719995069179,6.1813,146.76,146.71,6.8161]
[1719995069491,6.1813,146.76,146.72,6.8155]
[1719995069690,6.1813,146.76,146.67,0.34]
[1719995069691,6.1813,146.76,146.71,6.816]
[1719995070467,6.1813,146.76,146.67,0.34]
[1719995070769,6.1813,146.76,146.71,6.8158]
[1719995070983,3.8281,146.79,146.73,6.815]
[1719995071291,3.8281,146.79,146.74,6.8146]
[1719995071467,6.537,146.8,146.74,6.8144]
[1719995071793,6.537,146.8,146.71,31.28]
[1719995071996,6.537,146.8,146.73,6.8149]
[1719995072969,6.537,146.8,146.74,6.8144]
[1719995073462,6.537,146.8,146.73,6.8147]
[1719995073668,6.537,146.8,146.74,6.8147]
[1719995074895,6.537,146.8,146.73,6.8151]
[1719995075394,0.8205734,146.81,146.74,31.28]
[1719995075692,0.8205734,146.81,146.77,38.0933]
[1719995075871,0.8205734,146.81,146.77,31.28]
[1719995076197,0.8205734,146.81,146.74,31.28]
[1719995076573,0.8205734,146.81,146.74,38.0946]
[1719995076775,0.8205734,146.81,146.74,31.28]
[1719995076979,0.8205734,146.81,146.75,7.25055295]
[1719995077198,0.8205734,146.81,146.76,6.8137]
[1719995077977,0.8205734,146.81,146.74,31.28]
[1719995078688,10.0123,146.8,146.73,6.815]
[1719995078989,10.0123,146.8,146.71,38.0959]
[1719995079199,0.17,146.79,146.71,38.096]
[1719995079381,0.17,146.79,146.71,31.28]
[1719995079586,0.34,146.79,146.71,31.28]
[1719995079891,0.34,146.79,146.72,6.8156]
[1719995080600,0.34,146.79,146.7,6.8165]
[1719995080807,0.34,146.79,146.69,38.0967]
[1719995081375,40.9,146.79,146.69,38.0967]
[1719995081572,40.9,146.79,146.68,6.8175]
[1719995081772,20.9,146.79,146.69,6.817]
[1719995082698,20.9,146.79,146.7,6.8166]
[1719995083999,20.9,146.79,146.69,6.8169]
[1719995084371,20.9,146.79,146.68,6.8173]
[1719995084577,20.9,146.79,146.67,31.28]
[1719995084786,20.9,146.79,146.67,38.0979]
[1719995084787,20.56,146.77,146.67,38.0979]
[1719995084999,0.34,146.76,146.68,6.8175]
[1719995085190,0.34,146.76,146.69,6.817]
[1719995085372,0.17,146.76,146.7,6.8166]
[1719995085695,0.17,146.76,146.67,31.28]
[1719995085882,0.17,146.76,146.7,6.8164]
[1719995086085,0.17,146.76,146.69,6.817]
[1719995086386,0.34,146.77,146.69,6.817]
[1719995086589,20.34,146.77,146.7,6.8164]
[1719995086795,7.12610243,146.78,146.67,31.28]
[1719995087097,10.0123,146.8,146.67,31.28]
[1719995087298,20.0,146.79,146.72,6.8156]
[1719995087489,17.13725343,146.8,146.72,6.8156]
[1719995087688,17.13725343,146.8,146.72,6.8155]
[1719995088077,17.13725343,146.8,146.71,6.816]
[1719995088282,0.34,146.79,146.67,31.28]
[1719995088486,0.34,146.79,146.7,6.8163]
[1719995088894,0.34,146.79,146.71,6.8161]
[1719995090203,0.34,146.79,146.69,6.8167]
[1719995090404,0.34,146.79,146.67,31.28]
[1719995090707,0.34,146.79,146.7,6.8162]
[1719995090904,27.0508,146.78,146.61,307.77296267]
[1719995091206,0.34,146.77,146.68,6.8175]
[1719995091393,0.34,146.77,146.68,6.8174]
[1719995091999,24.3881,146.76,146.66,31.28]
[1719995092300,20.34,146.75,146.67,6.8177]
[1719995092492,20.34,146.75,146.67,6.8179]
[1719995092693,20.34,146.75,146.64,31.28]
[1719995092694,0.34,146.75,146.66,6.8181]
[1719995092903,40.9,146.75,146.66,6.8181]
[1719995093110,20.9,146.75,146.67,6.818]
[1719995093405,20.9,146.75,146.64,31.28]
[1719995093598,20.9,146.75,146.65,6.8189]
[1719995093907,20.9,146.75,146.64,6.8193]
[1719995094096,20.9,146.75,146.65,6.8189]
[1719995094297,20.56,146.73,146.64,6.8192]
[1719995094491,20.56,146.73,146.63,31.28]
[1719995094492,0.34,146.72,146.65,6.8188]
[1719995095004,0.34,146.72,146.66,6.8184]
[1719995095503,0.34,146.72,146.63,31.28]
[1719995095716,40.9,146.72,146.63,38.0997]
[1719995096494,40.9,146.72,146.64,6.8193]
[1719995097703,40.9,146.72,146.63,31.28]
[1719995098105,40.9,146.72,146.63,38.0998]
[1719995100114,40.9,146.72,146.63,31.28]
[1719995100321,3.8281,146.71,146.62,6.8202]
[1719995100506,0.34,146.7,146.61,6.8207]
[1719995100693,0.34,146.7,146.6,31.28]
[1719995100890,0.34,146.7,146.6,38.1009]
[1719995101110,0.34,146.7,146.61,6.8207]
[1719995101312,6.3283,146.69,146.58,31.28]
[1719995101505,0.34,146.68,146.58,31.28]
[1719995101901,0.34,146.68,146.59,6.8215]
[1719995102301,0.34,146.68,146.58,6.8221]
[1719995102504,24.3881,146.67,146.54,7.337027]
[1719995102722,20.34,146.66,146.54,31.28]
[1719995103017,6.0072,146.65,146.54,31.28]
[1719995103223,0.17,146.64,146.56,6.8227]
[1719995103418,0.17,146.64,146.57,6.8225]
[1719995103721,0.17,146.64,146.57,6.8223]
[1719995104228,0.34,146.64,146.57,6.8223]
[1719995105521,0.34,146.64,146.56,6.8229]
[1719995105700,0.34,146.64,146.54,31.28]
[1719995106714,0.34,146.64,146.54,38.1038]
[1719995106918,20.34,146.64,146.55,6.8234]
[1719995107111,20.34,146.64,146.56,6.823]
[1719995107312,6.0072,146.65,146.59,6.8216]
[1719995107512,6.0072,146.65,146.52,20.56]
[1719995107711,6.0072,146.65,146.59,6.8213]
[1719995108317,6.0072,146.65,146.61,6.8206]
[1719995108530,3.8281,146.67,146.61,6.8206]
[1719995109203,3.8281,146.67,146.6,6.8211]
[1719995109409,3.8281,146.67,146.59,6.8215]
[1719995109610,3.8281,146.67,146.6,6.8212]
[1719995110222,0.17,146.66,146.59,6.8216]
[1719995110530,0.34,146.66,146.6,0.67653288]
[1719995111125,0.34,146.66,146.57,38.1025]
[1719995111521,0.34,146.66,146.58,6.8222]
[1719995111712,0.34,146.66,146.57,31.28]
[1719995111916,0.34,146.66,146.58,6.8222]
[1719995112113,0.34,146.66,146.57,38.1026]
[1719995113604,0.34,146.66,146.58,6.8222]
[1719995116534,0.34,146.66,146.57,31.28]
[1719995116910,0.34,146.66,146.58,6.8221]
[1719995117114,0.34,146.66,146.57,31.28]
[1719995117827,0.34,146.66,146.59,6.8216]
[1719995119638,0.34,146.66,146.58,6.822]
[1719995122721,20.34,146.66,146.57,6.8223]
[1719995123041,20.34,146.66,146.58,6.8221]
[1719995124425,10.95222644,146.67,146.61,6.8203]
[1719995124624,3.8281,146.67,146.61,6.8203]
[1719995126124,3.8281,146.67,146.61,31.28]
[1719995126333,3.8281,146.71,146.62,0.17]
[1719995126527,3.8281,146.71,146.65,6.8185]
[1719995127379,3.8281,146.71,146.63,6.8195]
[1719995127639,3.8281,146.71,146.64,6.8193]
[1719995128343,3.8281,146.71,146.62,6.8201]
[1719995128932,0.34,146.7,146.62,6.8201]
[1719995129134,0.34,146.7,146.61,38.1007]
[1719995129443,0.34,146.7,146.62,6.8202]
[1719995129646,0.34,146.7,146.63,6.8198]
[1719995130353,0.17,146.7,146.64,6.8193]
[1719995130541,0.17,146.7,146.63,6.8198]
[1719995130848,0.34,146.7,146.62,6.8202]
[1719995132161,0.34,146.7,146.61,31.28]
[1719995132333,40.9,146.7,146.61,31.28]
[1719995132526,40.9,146.7,146.6,6.8209]
[1719995132724,40.9,146.7,146.59,6.8215]
[1719995133849,26.7362,146.69,146.59,6.8215]
[1719995134056,0.34,146.68,146.59,6.8215]
[1719995134926,0.34,146.68,146.6,6.8211]
[1719995135632,0.34,146.68,146.62,6.8203]
[1719995135847,0.17,146.68,146.62,6.8203]
[1719995136547,6.1762,146.69,146.62,6.8203]
[1719995136754,6.1762,146.69,146.63,6.8198]
[1719995137049,6.1762,146.69,146.61,31.28]
[1719995137050,6.1762,146.69,146.64,6.8194]
[1719995139658,6.1762,146.69,146.63,6.8197]
[1719995140571,6.1762,146.69,146.64,6.8193]
[1719995141644,6.1762,146.69,146.63,6.8196]
[1719995143362,6.1762,146.69,146.61,31.28]
[1719995143566,3.8281,146.71,146.69,6.817]
[1719995143865,6.2723,146.74,146.69,6.8169]
[1719995144658,6.2723,146.74,146.67,38.0978]
[1719995145042,6.2723,146.74,146.67,31.28]
[1719995145665,6.2723,146.74,146.67,38.098]
[1719995146352,6.2723,146.74,146.67,31.28]
[1719995146652,6.2723,146.74,146.67,38.0977]
[1719995147651,6.2723,146.74,146.68,6.8175]
[1719995148168,6.2723,146.74,146.67,38.0979]
[1719995148463,6.2723,146.74,146.67,31.28]
[1719995149895,6.2723,146.74,146.67,38.0978]
[1719995151165,6.2723,146.74,146.67,31.28]
[1719995152043,6.2723,146.74,146.65,6.8187]
[1719995152966,6.2723,146.74,146.66,6.8183]
[1719995154267,6.2723,146.74,146.67,6.8179]
[1719995154947,6.2723,146.74,146.68,6.8175]
[1719995155159,6.2723,146.74,146.67,6.8178]
[1719995156069,6.2723,146.74,146.68,6.8175]
[1719995156569,6.2723,146.74,146.71,6.8159]
[1719995157348,6.2723,146.74,146.67,31.28]
[1719995158057,6.2723,146.74,146.71,6.816]
[1719995158567,5.4792527,146.78,146.72,6.8156]
[1719995158568,6.2301,146.78,146.72,6.8156]
[1719995158777,6.2301,146.78,146.71,6.8161]
[1719995160379,6.2301,146.78,146.7,38.0964]
[1719995160877,6.2301,146.78,146.66,0.17]
[1719995161073,0.17,146.77,146.69,6.817]
[1719995161373,0.34,146.77,146.68,6.8174]
[1719995161581,0.34,146.77,146.69,6.817]
[1719995161754,0.34,146.77,146.65,31.28]
[1719995162071,32.71613674,146.77,146.67,6.8177]
[1719995162273,3.8281,146.76,146.67,6.8177]
[1719995162446,0.34,146.75,146.67,6.8177]
[1719995162977,0.34,146.75,146.68,6.8175]
[1719995163544,0.34,146.75,146.65,31.28]
[1719995163850,3.8281,146.76,146.69,6.8168]
[1719995164051,3.8281,146.76,146.65,31.28]
[1719995164052,3.8281,146.76,146.73,6.815]
[1719995164679,3.8281,146.76,146.72,6.8155]
[1719995165271,3.8281,146.76,146.71,6.816]
[1719995165479,3.8281,146.76,146.72,6.8156]
[1719995166477,3.8281,146.76,146.71,6.8159]
[1719995166977,3.8281,146.76,146.72,6.8155]
[1719995167356,3.8281,146.76,146.73,6.8152]
[1719995167952,3.8281,146.76,146.72,6.8155]
[1719995169984,3.8281,146.76,146.68,31.28]
[1719995170156,3.8281,146.76,146.69,6.9869]
[1719995170352,3.8281,146.76,146.69,0.17]
[1719995170876,3.8281,146.76,146.71,6.8158]
[1719995171458,3.8281,146.76,146.7,6.8165]
[1719995171769,3.8281,146.76,146.73,15.64]
[1719995172177,3.8281,146.76,146.7,6.8165]
[1719995172361,3.8281,146.76,146.73,15.64]
[1719995173472,3.8281,146.76,146.65,67.88386219]
[1719995173774,3.8281,146.76,146.75,15.64]
[1719995174272,7.11840659,146.8,146.75,15.64]
[1719995174273,10.94650659,146.8,146.75,15.64]
[1719995174452,3.8281,146.8,146.78,15.64]
[1719995174850,3.8281,146.8,146.79,15.64]
[1719995175764,3.8281,146.8,146.78,15.64]
[1719995175961,3.8281,146.8,146.77,15.64]
[1719995176883,3.8281,146.8,146.78,15.64]
[1719995178965,3.8281,146.8,146.79,15.64]
[1719995179904,7.2147734,146.81,146.79,15.64]
[1719995180986,7.2147734,146.81,146.8,15.64]
[1719995181366,0.8205734,146.81,146.8,15.64]
[1719995181867,0.8205734,146.81,146.8,22.4519]
[1719995183656,0.8205734,146.81,146.8,6.8119]
[1719995183862,0.8205734,146.81,146.8,22.4519]
[1719995184179,0.8205734,146.81,146.8,15.64]
[1719995184487,0.8205734,146.81,146.73,6.5902]
[1719995184783,0.8205734,146.81,146.79,15.64]
[1719995187068,0.8205734,146.81,146.75,6.8142]
[1719995187367,16.4605734,146.81,146.72,78.774]
[1719995187579,16.4605734,146.81,146.76,15.64]
[1719995187765,0.8205734,146.81,146.72,47.494]
[1719995188283,0.8205734,146.81,146.74,6.8144]
[1719995188485,0.8205734,146.81,146.75,6.8142]
[1719995189379,0.8205734,146.81,146.75,6.8141]
[1719995189581,0.8205734,146.81,146.72,47.494]
[1719995190169,0.8205734,146.81,146.76,6.8133]
[1719995190369,0.8205734,146.81,146.72,47.494]
[1719995190774,0.8205734,146.81,146.75,6.8139]
[1719995193186,0.8205734,146.81,146.72,47.494]
[1719995193692,0.8205734,146.81,146.77,6.813]
[1719995194075,0.8205734,146.81,146.78,6.8127]
[1719995196259,0.8205734,146.81,146.79,6.8123]
[1719995196666,0.8205734,146.81,146.8,6.8119]
[1719995196865,0.8205734,146.81,146.79,6.8122]
[1719995197385,0.8205734,146.81,146.8,6.8119]
[1719995197685,0.8205734,146.81,146.79,6.8123]
[1719995197885,0.8205734,146.81,146.8,6.8119]
[1719995198958,0.8205734,146.81,146.79,6.8122]
[1719995199161,0.8205734,146.81,146.78,31.28]
[1719995199376,0.8205734,146.81,146.76,6.8135]